Workbook

Sheet ＴＯＰ
B4: 入力・移動 各シートの | E4: に必要事項を入力します。
B5: 印刷 各シートはＡ４サイズの用紙に出力されます。
B7: 入力・移動 | D7: 印刷 | F7: 説明
F9: 会社名とシミュレーション年度の損益計算書と税額を入力してください。
F11: 現在の決算書の数字を入力します。
F13: 現在の役員報酬の状況と、変更後の役員報酬の見込額を入力します。
F15: 役員報酬を変更した後の損益計算書を自動計算し、変更前の損益計算書と対比します。役員報酬以外の経費の増減もこちらで入力します。
F17: 役員報酬・経費変更後の損益計算書から、法人の税金を計算します。シミュレーション年度の別表４の加減算項目を入力します。
F19: 現在の税金・社会保険料の負担額と、役員報酬変更後の税金・社会保険料を一枚のシートで対比します。
F21: 提供：小林敬幸税理士事務所
F22: Ver. 1.0
C24: 保護パスワードは、左の本の背面の
C25: ２つめのバーコードの数字
C26: （1922で始まる１３ケタの数字（半角））
C27: になっています。
C29: ご活用いただけるようでしたら、ぜひ本書も
C30: お求めください。

Sheet 基本情報入力
B7: 会社名を入力 | C7: 株式会社今野デザイン
B9: シミュレーション対象となる事業年度終了日 | C9: 2025-06-30
B11: 現在の法人税 | C11: 570400
B12: 現在の地方法人税 | C12: 25000
B13: 現在の法人事業税 | C13: 93400
B14: 現在の法人道府県民税 | C14: 48500
B15: 現在の地方法人特別税 | C15: 69200
B16: 現在の法人市町村民税 | C16: 120100
B17: 合計 | C17: =SUM(C11:C16) -> 926600

Sheet 現在の決算書
A7: 勘 定 科 目 | F7: 決算額を入力
A9: 経常損益 | B9: 営業損益 | C9: 売上高 | D9: 売上高 | F9: 26585245
F10: 0
F11: 0
D12: 売上高合計 | F12: =SUM(F9:F11) -> 26585245
C13: 売上原価 | D13: 期首棚卸高
D14: 仕入高
D20: 期末棚卸高
D21: 売上原価 | F21: =SUM(F13:F20) -> 0
C22: 売上総損益金額 | F22: =F12-F21 -> 26585245
C23: (売上総利益率） | F23: =IF(F12<=0,0,F22/F12) -> 1
C24: 販売費及び一般管理費 | D24: 人件費 | E24: 役員報酬 | F24: 10620000 | G24: =IF(F24=給与の情報!J13,"給与の情報と一致","給与の情報と不一致") -> 給与の情報と一致
E25: 給料手当 | F25: 0
E26: 賞与 | F26: 0
E27: 退職金 | F27: 0
E28: 法定福利費 | F28: 1300236
F29: 0
F30: 0
F31: 0
E32: 人件費小計 | F32: =SUM(F24:F31) -> 11920236
D33: その他の経費 | E33: 外注費 | F33: 2253654
E34: 広告宣伝費 | F34: 635000
E35: 交際費 | F35: 783221
E36: 会議費 | F36: 52633
E37: 旅費交通費 | F37: 856321
E38: 通信費 | F38: 452321
E39: 消耗品費 | F39: 900000
E40: 事務用品費 | F40: 0
E41: 水道光熱費 | F41: 180321
E42: 新聞図書費 | F42: 245622
E43: 諸会費 | F43: 180000
E44: 支払手数料 | F44: 840000
E45: 車両費 | F45: 325000
E46: 地代家賃 | F46: 1440000
E47: 賃借料 | F47: 240000
E48: リース料
E49: 保険料 | F49: 45000
E50: 租税公課 | F50: 410000
E51: 研究開発費
E52: 減価償却費 | F52: 400000
E53: 長期前払費用償却
E54: 雑費 | F54: 256000
E55: 顧問料 | F55: 514500
F60: 0
F61: 0
D62: 販売管理費計 | F62: =SUM(F32:F61) -> 22929829
C63: 営業損益金額 | F63: =F22-F62 -> 3655416
B64: 営業外損益 | C64: 営業外収益 | D64: 受取利息 | F64: 9000
D65: 受取配当金
D68: 雑収入
D69: 営業外収益合計 | F69: =SUM(F64:F68) -> 9000
C70: 営業外費用 | D70: 支払利息
D74: 雑損失
D75: 営業外費用合計 | F75: =SUM(F70:F74) -> 0
C76: 経常損益金額 | F76: =F63+F69-F75 -> 3664416
A77: 特別損益 | C77: 特別利益
D82: 特別利益合計 | F82: =SUM(F77:F81) -> 0
C83: 特別損失
D88: 特別損失合計 | F88: =SUM(F83:F87) -> 0
C89: 税引前当期利益金額 | F89: =F76+F82-F88 -> 3664416

Sheet 給与の情報
E6: 現在の役員報酬 | L6: 変更後の役員報酬
E7: 一人目 | F7: 二人目 | G7: 三人目 | H7: 四人目 | I7: 五人目 | J7: 合計 | L7: 一人目 | M7: 二人目 | N7: 三人目 | O7: 四人目 | P7: 五人目 | Q7: 合計
B8: 名前 | E8: 今野友夫 | F8: 今野朝子 | G8: 今野みつ子 | H8: 今野雅之 | I8: 今野菜穂美 | L8: =IF(E8="","",E8) -> 今野友夫 | M8: 今野朝子 | N8: 今野みつ子 | O8: 今野雅之 | P8: 今野菜穂美
B9: 役職 | E9: 代表取締役 | F9: 取締役 | G9: 監査役 | H9: 取締役 | I9: 取締役 | L9: 代表取締役 | M9: 取締役 | N9: 監査役 | O9: 取締役 | P9: 取締役
B10: 年齢 | E10: 42 | F10: 35 | G10: 63 | H10: 72 | I10: 35 | L10: 42 | M10: 35 | N10: 63 | O10: 72 | P10: 35
B11: 関係 | E11: 本人 | F11: 妻 | G11: 母 | H11: 父 | I11: 妹 | L11: 本人 | M11: 妻 | N11: 母 | O11: 父 | P11: 妹
B12: 子育て・介護世帯 | E12: 非該当 | F12: 非該当 | G12: 非該当 | H12: 非該当 | I12: 非該当 | L12: =E12 -> 非該当 | M12: =F12 -> 非該当 | N12: 非該当 | O12: 非該当 | P12: 非該当
A13: ①所得金額 | B13: 給与の額 | E13: 8000000 | F13: 1600000 | G13: 1020000 | J13: =SUM(E13:I13) -> 10620000 | K13: =IF(J13=現在の決算書!F24,"OK","不一致") -> OK | L13: 5400000 | M13: 3600000 | N13: 1260000 | O13: 1260000 | P13: 1260000 | Q13: =SUM(L13:P13) -> 12780000
B14: 月額給与 | E14: =ROUNDDOWN(E13/12,0) -> 666666 | F14: =ROUNDDOWN(F13/12,0) -> 133333 | G14: =ROUNDDOWN(G13/12,0) -> 85000 | H14: =ROUNDDOWN(H13/12,0) -> 0 | I14: =ROUNDDOWN(I13/12,0) -> 0 | L14: =ROUNDDOWN(L13/12,0) -> 450000 | M14: =ROUNDDOWN(M13/12,0) -> 300000 | N14: =ROUNDDOWN(N13/12,0) -> 105000 | O14: =ROUNDDOWN(O13/12,0) -> 105000 | P14: =ROUNDDOWN(P13/12,0) -> 105000
B15: 子育て・介護世帯 | E15: =IF(E13<=650000,E13-E13,IF(E13<=1900000,E13-650000,IF(E13<=3600000,E13-(E13*0.3+80000),IF(E13<=6600000,E13-(E13*0.2+440000),IF(E13<=8500000,E13-(E13*0.1+1100000),IF(E13<=10000000,E13-(E13*0.1+1100000),E13-2100000)))))) -> 6100000 | F15: =IF(F13<=650000,F13-F13,IF(F13<=1900000,F13-650000,IF(F13<=3600000,F13-(F13*0.3+80000),IF(F13<=6600000,F13-(F13*0.2+440000),IF(F13<=8500000,F13-(F13*0.1+1100000),IF(F13<=10000000,F13-(F13*0.1+1100000),F13-2100000)))))) -> 950000 | G15: 370000 | H15: 0 | I15: 0 | L15: =IF(L13<=650000,L13-L13,IF(L13<=1900000,L13-650000,IF(L13<=3600000,L13-(L13*0.3+80000),IF(L13<=6600000,L13-(L13*0.2+440000),IF(L13<=8500000,L13-(L13*0.1+1100000),IF(L13<=10000000,L13-(L13*0.1+1100000),L13-2100000)))))) -> 3880000 | M15: 2440000 | N15: 610000 | O15: 610000 | P15: 610000
B16: それ以外 | E16: =IF(E13<=650000,E13-E13,IF(E13<=1900000,E13-650000,IF(E13<=3600000,E13-(E13*0.3+80000),IF(E13<=6600000,E13-(E13*0.2+440000),IF(E13<=8500000,E13-(E13*0.1+1100000),IF(E13<=10000000,E13-1950000,E13-1950000)))))) -> 6100000 | F16: =IF(F13<=650000,F13-F13,IF(F13<=1900000,F13-650000,IF(F13<=3600000,F13-(F13*0.3+80000),IF(F13<=6600000,F13-(F13*0.2+440000),IF(F13<=8500000,F13-(F13*0.1+1100000),IF(F13<=10000000,F13-1950000,F13-1950000)))))) -> 950000 | G16: 370000 | H16: 0 | I16: 0 | L16: =IF(L13<=650000,L13-L13,IF(L13<=1900000,L13-650000,IF(L13<=3600000,L13-(L13*0.3+80000),IF(L13<=6600000,L13-(L13*0.2+440000),IF(L13<=8500000,L13-(L13*0.1+1100000),IF(L13<=10000000,L13-1950000,L13-1950000)))))) -> 3880000 | M16: 2440000 | N16: 610000 | O16: 610000 | P16: 610000
B17: 給与所得額 | E17: =IF(E12="非該当",E16,E15) -> 6100000 | F17: =IF(F12="非該当",F16,F15) -> 950000 | G17: 370000 | H17: 0 | I17: 0 | L17: =IF(L12="非該当",L16,L15) -> 3880000 | M17: 2440000 | N17: 610000 | O17: 610000 | P17: 610000
B18: その他の所得の額 | J18: =SUM(E18:I18) -> 0
B19: 所得金額合計 | E19: =SUM(E17:E18) -> 6100000 | F19: =SUM(F17:F18) -> 950000 | G19: =SUM(G17:G18) -> 370000 | H19: =SUM(H17:H18) -> 0 | I19: =SUM(I17:I18) -> 0 | L19: =SUM(L17:L18) -> 3880000 | M19: =SUM(M17:M18) -> 2440000 | N19: =SUM(N17:N18) -> 610000 | O19: =SUM(O17:O18) -> 610000 | P19: =SUM(P17:P18) -> 610000 | W19: 基礎控除表
A20: ②所得控除額 | B20: 社会保険料控除額 | E20: =E45 -> 1160160 | F20: =F45 -> 228816 | G20: =G45 ->  | H20: =H45 ->  | I20: =I45 ->  | L20: =L45 -> 793320 | M20: =M45 -> 512280 | N20: =N45 ->  | O20: =O45 -> 63396 | P20: =P45 ->  | W20: 納税者本人の合計所得金額 | X20: 所得税控除額 | Y20: 住民税控除額
B21: （国民健康保険料） | J21: =SUM(E21:I21) -> 0 | Q21: =SUM(L21:P21) -> 0 | W21: 0 | X21: 950000 | Y21: 430000
B22: （国民年金保険料） | J22: =SUM(I22) -> 0 | Q22: =SUM(L22:P22) -> 0 | W22: 1320001 | X22: 880000 | Y22: 430000
B23: （その他の社会保険料） | W23: 3360001 | X23: 680000 | Y23: 430000
B24: 小規模企業共済掛金控除 | E24: 840000 | F24: 120000 | L24: 840000 | M24: 120000 | W24: 4890001 | X24: 630000 | Y24: 430000
B25: 生命保険料控除 | E25: 80000 | F25: 40000 | L25: 80000 | M25: 40000 | W25: 6550001 | X25: 580000 | Y25: 430000
B26: 地震保険料控除 | W26: 23500001 | X26: 480000 | Y26: 430000
B27: 寡婦・寡夫控除 | W27: 24000001 | X27: 320000 | Y27: 290000
B28: 障害者控除 | W28: 24500001 | X28: 160000 | Y28: 150000
B29: 配偶者控除 | W29: 25000001 | X29: 0 | Y29: 0
B30: 配偶者特別控除
B31: 扶養控除 | E31: 380000 | L31: 380000
B32: その他の所得控除 | E32: 50000 | L32: 50000
B33: 基礎控除 | E33: =VLOOKUP(E19,$W$21:$Y$29,2,TRUE) -> 630000 | F33: =VLOOKUP(F19,$W$21:$Y$29,2,TRUE) -> 950000 | G33: 950000 | H33: 950000 | I33: 950000 | L33: =VLOOKUP(L19,$W$21:$Y$29,2,TRUE) -> 680000 | M33: 880000 | N33: 950000 | O33: 950000 | P33: 950000
B34: 所得控除額合計 | E34: =SUM(E20:E33) -> 3140160 | F34: =SUM(F20:F33) -> 1338816 | G34: =SUM(G20:G33) -> 950000 | H34: =SUM(H20:H33) -> 950000 | I34: =SUM(I20:I33) -> 950000 | L34: =SUM(L20:L33) -> 2823320 | M34: =SUM(M20:M33) -> 1552280 | N34: =SUM(N20:N33) -> 950000 | O34: =SUM(O20:O33) -> 1013396 | P34: =SUM(P20:P33) -> 950000
A35: ①－② | B35: 課税所得金額 | E35: =IF(E19-E34<0,0,E19-E34) -> 2959840 | F35: =IF(F19-F34<0,0,F19-F34) -> 0 | G35: =IF(G19-G34<0,0,G19-G34) -> 0 | H35: =IF(H19-H34<0,0,H19-H34) -> 0 | I35: =IF(I19-I34<0,0,I19-I34) -> 0 | L35: =IF(L19-L34<0,0,L19-L34) -> 1056680 | M35: =IF(M19-M34<0,0,M19-M34) -> 887720 | N35: =IF(N19-N34<0,0,N19-N34) -> 0 | O35: =IF(O19-O34<0,0,O19-O34) -> 0 | P35: =IF(P19-P34<0,0,P19-P34) -> 0
B36: 所得税額 | E36: =IF(E35<=1950000,ROUNDDOWN(E35*0.05,-2),IF(E35<=3300000,ROUNDDOWN(E35*0.1-97500,-2),IF(E35<=6950000,ROUNDDOWN(E35*0.2-427500,-2),IF(E35<=9000000,ROUNDDOWN(E35*0.23-636000,-2),IF(E35<=18000000,ROUNDDOWN(E35*0.33-1536000,-2),IF(E35<=40000000,ROUNDDOWN(E35*0.4-2796000,-2),ROUNDDOWN(E35*0.45-4796000,-2))))))) -> 198400 | F36: =IF(F35<=1950000,ROUNDDOWN(F35*0.05,-2),IF(F35<=3300000,ROUNDDOWN(F35*0.1-97500,-2),IF(F35<=6950000,ROUNDDOWN(F35*0.2-427500,-2),IF(F35<=9000000,ROUNDDOWN(F35*0.23-636000,-2),IF(F35<=18000000,ROUNDDOWN(F35*0.33-1536000,-2),IF(F35<=40000000,ROUNDDOWN(F35*0.4-2796000,-2),ROUNDDOWN(F35*0.45-4796000,-2))))))) -> 0 | G36: 0 | H36: 0 | I36: 0 | J36: =SUM(E36:I36) -> 198400 | L36: =IF(L35<=1950000,ROUNDDOWN(L35*0.05,-2),IF(L35<=3300000,ROUNDDOWN(L35*0.1-97500,-2),IF(L35<=6950000,ROUNDDOWN(L35*0.2-427500,-2),IF(L35<=9000000,ROUNDDOWN(L35*0.23-636000,-2),IF(L35<=18000000,ROUNDDOWN(L35*0.33-1536000,-2),IF(L35<=40000000,ROUNDDOWN(L35*0.4-2796000,-2),ROUNDDOWN(L35*0.45-4796000,-2))))))) -> 52800 | M36: 44300 | N36: 0 | O36: 0 | P36: 0 | Q36: =SUM(L36:P36) -> 97100
B37: 所得税+復興特別所得税額 （所得税額×１０２．１％） | E37: =ROUNDDOWN(E36*1.021,-2) -> 202500 | F37: =ROUNDDOWN(F36*1.021,-2) -> 0 | G37: 0 | H37: 0 | I37: 0 | J37: =SUM(E37:I37) -> 202500 | L37: =ROUNDDOWN(L36*1.021,-2) -> 53900 | M37: =ROUNDDOWN(M36*1.021,-2) -> 45200 | N37: 0 | O37: 0 | P37: 0 | Q37: =SUM(L37:P37) -> 99100
B38: 住民税基礎控除 | E38: =VLOOKUP(E19,$W$21:$Y$29,3,TRUE) -> 430000 | F38: =VLOOKUP(F19,$W$21:$Y$29,3,TRUE) -> 430000 | G38: 430000 | H38: 430000 | I38: 430000 | J38: =SUM(E38:I38) -> 2150000 | L38: =VLOOKUP(L19,$W$21:$Y$29,3,TRUE) -> 430000 | M38: 430000 | N38: 430000 | O38: 430000 | P38: 430000 | Q38: =SUM(L38:P38) -> 2150000
B39: 住民税課税所得 （所得税課税所得×１０％） | E39: =IF(E19-SUM(E20:E32)-E38<0,0,E19-SUM(E20:E32)-E38) -> 3159840 | F39: =IF(F19-SUM(F20:F32)-F38<0,0,F19-SUM(F20:F32)-F38) -> 131184 | G39: 0 | H39: 0 | I39: 0 | J39: =SUM(E39:I39) -> 3291024 | L39: =IF(L19-SUM(L20:L32)-L38<0,0,L19-SUM(L20:L32)-L38) -> 1306680 | M39: 1337720 | N39: 180000 | O39: 116604 | P39: 180000 | Q39: =SUM(L39:P39) -> 3121004
B40: 住民税額 （所得税課税所得×１０％(基礎控除のみ調整）） | E40: =ROUNDDOWN(E39*0.1,-2) -> 315900 | F40: =ROUNDDOWN(F39*0.1,-2) -> 13100 | G40: 0 | H40: 0 | I40: 0 | J40: =SUM(E40:I40) -> 329000 | L40: =ROUNDDOWN(L39*0.1,-2) -> 130600 | M40: 133700 | N40: 18000 | O40: 11600 | P40: 18000 | Q40: =SUM(L40:P40) -> 311900
B41: 税額合計 | E41: =SUM(E37,E40) -> 518400 | F41: =SUM(F37,F40) -> 13100 | G41: 0 | H41: 0 | I41: 0 | J41: 531500 | L41: =SUM(L37,L40) -> 184500 | M41: 178900 | N41: 18000 | O41: 11600 | P41: 18000 | Q41: 411000
A43: 社会 保険料 | B43: 社会保険の加入の有無 | E43: 加入 | F43: 加入 | G43: 非加入 | H43: 非加入 | I43: 非加入 | L43: 加入 | M43: 加入 | N43: 非加入 | O43: 加入 | P43: 非加入 | Q43: 合計
B44: 法人負担額 | E44: =IF(E43="非加入","",E58*12) -> 1186944 | F44: =IF(F43="非加入","",F58*12) -> 234600 | G44: =IF(G43="非加入","",G58*12) ->  | H44: =IF(H43="非加入","",H58*12) ->  | I44: =IF(I43="非加入","",I58*12) ->  | J44: =SUM(E44:I44) -> 1421544 | L44: =IF(L43="非加入","",L58*12) -> 812328 | M44: =IF(M43="非加入","",M58*12) -> 525240 | N44: =IF(N43="非加入","",N58*12) ->  | O44: =IF(O43="非加入","",O58*12) -> 67884 | P44: =IF(P43="非加入","",P58*12) ->  | Q44: =SUM(L44:P44) -> 1405452
B45: 個人負担額 | E45: =IF(E43="非加入","",E57*12) -> 1160160 | F45: =IF(F43="非加入","",F57*12) -> 228816 | G45: =IF(G43="非加入","",G57*12) ->  | H45: =IF(H43="非加入","",H57*12) ->  | I45: =IF(I43="非加入","",I57*12) ->  | J45: =SUM(E45:I45) -> 1388976 | L45: =IF(L43="非加入","",L57*12) -> 793320 | M45: =IF(M43="非加入","",M57*12) -> 512280 | N45: =IF(N43="非加入","",N57*12) ->  | O45: =IF(O43="非加入","",O57*12) -> 63396 | P45: =IF(P43="非加入","",P57*12) ->  | Q45: =SUM(L45:P45) -> 1368996
B46: 合計 | E46: =SUM(E44:E45) -> 2347104 | F46: 463416 | G46: 0 | H46: 0 | I46: 0 | J46: 2810520 | L46: =SUM(L44:L45) -> 1605648 | M46: =SUM(M44:M45) -> 1037520 | N46: =SUM(N44:N45) -> 0 | O46: =SUM(O44:O45) -> 131280 | P46: =SUM(P44:P45) -> 0 | Q46: =SUM(L46:P46) -> 2774448
A47: 社保算定 基礎数字 | B47: 保険料率の入力 （最新の「健康保険・厚生年金保険 標準報酬月額・保険料額表」の料率を入力してください）
B48: 健康保険 | C48: 一般被保険者 | D48: 0.0508 | E48: =IF(E10>=40,IF(E10>=65,$D48,$D49),$D48) -> 0.05875 | F48: =IF(F10>=40,IF(F10>=65,$D48,$D49),$D48) -> 0.0508 | G48: =IF(G10>=40,IF(G10>=65,$D48,$D49),$D48) -> 0.05875 | H48: =IF(H10>=40,IF(H10>=65,$D48,$D49),$D48) -> 0.0508 | I48: =IF(I10>=40,IF(I10>=65,$D48,$D49),$D48) -> 0.0508 | L48: =IF(L10>=40,IF(L10>=65,$D48,$D49),$D48) -> 0.05875 | M48: =IF(M10>=40,IF(M10>=65,$D48,$D49),$D48) -> 0.0508 | N48: =IF(N10>=40,IF(N10>=65,$D48,$D49),$D48) -> 0.05875 | O48: =IF(O10>=40,IF(O10>=65,$D48,$D49),$D48) -> 0.0508 | P48: =IF(P10>=40,IF(P10>=65,$D48,$D49),$D48) -> 0.0508
C49: 介護保険第２号被保険者 | D49: 0.05875
B50: 厚生年金 | C50: 厚生年金保険料被保険者 | D50: 0.0915 | E50: =IF(E10>=70,0,$D50) -> 0.0915 | F50: =IF(F10>=70,0,$D50) -> 0.0915 | G50: 0.0915 | H50: 0 | I50: 0.0915 | L50: =IF(L10>=70,0,$D50) -> 0.0915 | M50: 0.0915 | N50: 0.0915 | O50: 0 | P50: 0.0915
B51: 子ども・子育て拠出金 | D51: 0.0036 | E51: =$D51 -> 0.0036 | F51: 0.0036 | G51: 0.0036 | H51: 0.0036 | I51: 0.0036 | L51: =$D51 -> 0.0036 | M51: =$D51 -> 0.0036 | N51: =$D51 -> 0.0036 | O51: 0.0036 | P51: 0.0036
B52: 健康保険標準報酬月額 | E52: =標準報酬月額表!F54 -> 680000 | F52: =標準報酬月額表!H54 -> 134000 | G52: =標準報酬月額表!J54 -> 88000 | H52: =標準報酬月額表!L54 ->  | I52: =標準報酬月額表!N54 ->  | L52: =標準報酬月額表!P54 -> 440000 | M52: =標準報酬月額表!R54 -> 300000 | N52: =標準報酬月額表!T54 -> 104000 | O52: =標準報酬月額表!V54 -> 104000 | P52: =標準報酬月額表!X54 -> 104000
B53: 厚生年金標準報酬月額 | E53: =標準報酬月額表!G54 -> 620000 | F53: =標準報酬月額表!I54 -> 134000 | G53: =標準報酬月額表!K54 -> 98000 | H53: =標準報酬月額表!M54 ->  | I53: =標準報酬月額表!O54 ->  | L53: =標準報酬月額表!Q54 -> 440000 | M53: =標準報酬月額表!S54 -> 300000 | N53: =標準報酬月額表!U54 -> 104000 | O53: =標準報酬月額表!W54 -> 104000 | P53: =標準報酬月額表!Y54 -> 104000
B54: 健康保険月額 | E54: =IF(ISERROR(ROUNDDOWN(E52*E48,0)),"",ROUNDDOWN(E52*E48,0)) -> 39950 | F54: =IF(ISERROR(ROUNDDOWN(F52*F48,0)),"",ROUNDDOWN(F52*F48,0)) -> 6807 | G54: =IF(ISERROR(ROUNDDOWN(G52*G48,0)),"",ROUNDDOWN(G52*G48,0)) -> 5170 | H54: =IF(ISERROR(ROUNDDOWN(H52*H48,0)),"",ROUNDDOWN(H52*H48,0)) ->  | I54: =IF(ISERROR(ROUNDDOWN(I52*I48,0)),"",ROUNDDOWN(I52*I48,0)) ->  | L54: =IF(ISERROR(ROUNDDOWN(L52*L48,0)),"",ROUNDDOWN(L52*L48,0)) -> 25850 | M54: =IF(ISERROR(ROUNDDOWN(M52*M48,0)),"",ROUNDDOWN(M52*M48,0)) -> 15240 | N54: =IF(ISERROR(ROUNDDOWN(N52*N48,0)),"",ROUNDDOWN(N52*N48,0)) -> 6110 | O54: =IF(ISERROR(ROUNDDOWN(O52*O48,0)),"",ROUNDDOWN(O52*O48,0)) -> 5283 | P54: =IF(ISERROR(ROUNDDOWN(P52*P48,0)),"",ROUNDDOWN(P52*P48,0)) -> 5283
B55: 厚生年金月額 | E55: =IF(ISERROR(ROUNDDOWN(E53*E50,0)),"",ROUNDDOWN(E53*E50,0)) -> 56730 | F55: =IF(ISERROR(ROUNDDOWN(F53*F50,0)),"",ROUNDDOWN(F53*F50,0)) -> 12261 | G55: =IF(ISERROR(ROUNDDOWN(G53*G50,0)),"",ROUNDDOWN(G53*G50,0)) -> 8967 | H55: =IF(ISERROR(ROUNDDOWN(H53*H50,0)),"",ROUNDDOWN(H53*H50,0)) ->  | I55: =IF(ISERROR(ROUNDDOWN(I53*I50,0)),"",ROUNDDOWN(I53*I50,0)) ->  | L55: =IF(ISERROR(ROUNDDOWN(L53*L50,0)),"",ROUNDDOWN(L53*L50,0)) -> 40260 | M55: =IF(ISERROR(ROUNDDOWN(M53*M50,0)),"",ROUNDDOWN(M53*M50,0)) -> 27450 | N55: =IF(ISERROR(ROUNDDOWN(N53*N50,0)),"",ROUNDDOWN(N53*N50,0)) -> 9516 | O55: =IF(ISERROR(ROUNDDOWN(O53*O50,0)),"",ROUNDDOWN(O53*O50,0)) -> 0 | P55: =IF(ISERROR(ROUNDDOWN(P53*P50,0)),"",ROUNDDOWN(P53*P50,0)) -> 9516
B56: 児童手当拠出金月額 | E56: =IF(ISERROR(ROUNDDOWN(E53*E51,0)),"",ROUNDDOWN(E53*E51,0)) -> 2232 | F56: =IF(ISERROR(ROUNDDOWN(F53*F51,0)),"",ROUNDDOWN(F53*F51,0)) -> 482 | G56: =IF(ISERROR(ROUNDDOWN(G53*G51,0)),"",ROUNDDOWN(G53*G51,0)) -> 352 | H56: =IF(ISERROR(ROUNDDOWN(H53*H51,0)),"",ROUNDDOWN(H53*H51,0)) ->  | I56: =IF(ISERROR(ROUNDDOWN(I53*I51,0)),"",ROUNDDOWN(I53*I51,0)) ->  | L56: =IF(ISERROR(ROUNDDOWN(L53*L51,0)),"",ROUNDDOWN(L53*L51,0)) -> 1584 | M56: =IF(ISERROR(ROUNDDOWN(M53*M51,0)),"",ROUNDDOWN(M53*M51,0)) -> 1080 | N56: =IF(ISERROR(ROUNDDOWN(N53*N51,0)),"",ROUNDDOWN(N53*N51,0)) -> 374 | O56: =IF(ISERROR(ROUNDDOWN(O53*O51,0)),"",ROUNDDOWN(O53*O51,0)) -> 374 | P56: =IF(ISERROR(ROUNDDOWN(P53*P51,0)),"",ROUNDDOWN(P53*P51,0)) -> 374
B57: 個人負担合計 | E57: =SUM(E54:E55) -> 96680 | F57: =SUM(F54:F55) -> 19068 | G57: =SUM(G54:G55) -> 14137 | H57: =SUM(H54:H55) -> 0 | I57: =SUM(I54:I55) -> 0 | L57: =SUM(L54:L55) -> 66110 | M57: =SUM(M54:M55) -> 42690 | N57: =SUM(N54:N55) -> 15626 | O57: =SUM(O54:O55) -> 5283 | P57: =SUM(P54:P55) -> 14799
B58: 法人負担合計 | E58: =SUM(E54:E56) -> 98912 | F58: =SUM(F54:F56) -> 19550 | G58: =SUM(G54:G56) -> 14489 | H58: =SUM(H54:H56) -> 0 | I58: =SUM(I54:I56) -> 0 | L58: =SUM(L54:L56) -> 67694 | M58: =SUM(M54:M56) -> 43770 | N58: =SUM(N54:N56) -> 16000 | O58: =SUM(O54:O56) -> 5657 | P58: =SUM(P54:P56) -> 15173

Sheet 経費の増減
A7: 勘 定 科 目 | F7: 決算額 | G7: 調整額 | H7: 調整後の金額 | I7: 調整の内容
A9: 経常損益 | B9: 営業損益 | C9: 売上高 | D9: =IF(現在の決算書!D9="","",現在の決算書!D9) -> 売上高 | F9: =IF(現在の決算書!F9="","",現在の決算書!F9) -> 26585245 | H9: =SUM(F9:G9) -> 26585245
D10: =IF(現在の決算書!D10="","",現在の決算書!D10) ->  | F10: =IF(現在の決算書!F10="","",現在の決算書!F10) -> 0 | H10: =SUM(F10:G10) -> 0
D11: =IF(現在の決算書!D11="","",現在の決算書!D11) ->  | F11: =IF(現在の決算書!F11="","",現在の決算書!F11) -> 0 | H11: 0
D12: 売上高合計 | F12: =SUM(F9:F11) -> 26585245 | H12: =SUM(H9:H11) -> 26585245
C13: 売上原価 | D13: =IF(現在の決算書!D13="","",現在の決算書!D13) -> 期首棚卸高 | F13: =IF(現在の決算書!F13="","",現在の決算書!F13) ->  | H13: 0
D14: =IF(現在の決算書!D14="","",現在の決算書!D14) -> 仕入高 | F14: =IF(現在の決算書!F14="","",現在の決算書!F14) ->  | H14: 0
D15: =IF(現在の決算書!D15="","",現在の決算書!D15) ->  | F15: =IF(現在の決算書!F15="","",現在の決算書!F15) ->  | H15: 0
D16: =IF(現在の決算書!D16="","",現在の決算書!D16) ->  | F16: =IF(現在の決算書!F16="","",現在の決算書!F16) ->  | H16: 0
D17: =IF(現在の決算書!D17="","",現在の決算書!D17) ->  | F17: =IF(現在の決算書!F17="","",現在の決算書!F17) ->  | H17: 0
D18: =IF(現在の決算書!D18="","",現在の決算書!D18) ->  | F18: =IF(現在の決算書!F18="","",現在の決算書!F18) ->  | H18: 0
D19: =IF(現在の決算書!D19="","",現在の決算書!D19) ->  | F19: =IF(現在の決算書!F19="","",現在の決算書!F19) ->  | H19: 0
D20: =IF(現在の決算書!D20="","",現在の決算書!D20) -> 期末棚卸高 | F20: =IF(現在の決算書!F20="","",現在の決算書!F20) ->  | H20: 0
D21: 売上原価 | F21: =SUM(F13:F20) -> 0 | H21: =SUM(H13:H20) -> 0
C22: 売上総損益金額 | F22: =F12-F21 -> 26585245 | H22: =H12-H21 -> 26585245
C23: (売上総利益率） | F23: =IF(F12<=0,0,F22/F12) -> 1 | H23: =IF(H12<=0,0,H22/H12) -> 1
C24: 販売費及び一般管理費 | D24: 人件費 | E24: =IF(現在の決算書!E24="","",現在の決算書!E24) -> 役員報酬 | F24: =IF(現在の決算書!F24="","",現在の決算書!F24) -> 10620000 | G24: =H24-F24 -> 2160000 | H24: =給与の情報!Q13 -> 12780000
E25: =IF(現在の決算書!E25="","",現在の決算書!E25) -> 給料手当 | F25: =IF(現在の決算書!F25="","",現在の決算書!F25) -> 0 | H25: 0
E26: =IF(現在の決算書!E26="","",現在の決算書!E26) -> 賞与 | F26: =IF(現在の決算書!F26="","",現在の決算書!F26) -> 0 | H26: 0
E27: =IF(現在の決算書!E27="","",現在の決算書!E27) -> 退職金 | F27: =IF(現在の決算書!F27="","",現在の決算書!F27) -> 0 | H27: 0
E28: =IF(現在の決算書!E28="","",現在の決算書!E28) -> 法定福利費 | F28: =IF(現在の決算書!F28="","",現在の決算書!F28) -> 1300236 | G28: =給与の情報!Q44-給与の情報!J44 -> -16092 | H28: 1284144
E29: =IF(現在の決算書!E29="","",現在の決算書!E29) ->  | F29: =IF(現在の決算書!F29="","",現在の決算書!F29) -> 0 | H29: 0
E30: =IF(現在の決算書!E30="","",現在の決算書!E30) ->  | F30: =IF(現在の決算書!F30="","",現在の決算書!F30) -> 0 | H30: 0
E31: =IF(現在の決算書!E31="","",現在の決算書!E31) ->  | F31: =IF(現在の決算書!F31="","",現在の決算書!F31) -> 0 | H31: 0
E32: 人件費小計 | F32: =SUM(F24:F31) -> 11920236 | H32: =SUM(H24:H31) -> 14064144
D33: その他の経費 | E33: =IF(現在の決算書!E33="","",現在の決算書!E33) -> 外注費 | F33: =IF(現在の決算書!F33="","",現在の決算書!F33) -> 2253654 | H33: 2253654
E34: =IF(現在の決算書!E34="","",現在の決算書!E34) -> 広告宣伝費 | F34: =IF(現在の決算書!F34="","",現在の決算書!F34) -> 635000 | H34: 635000
E35: =IF(現在の決算書!E35="","",現在の決算書!E35) -> 交際費 | F35: =IF(現在の決算書!F35="","",現在の決算書!F35) -> 783221 | H35: 783221
E36: =IF(現在の決算書!E36="","",現在の決算書!E36) -> 会議費 | F36: =IF(現在の決算書!F36="","",現在の決算書!F36) -> 52633 | H36: 52633
E37: =IF(現在の決算書!E37="","",現在の決算書!E37) -> 旅費交通費 | F37: =IF(現在の決算書!F37="","",現在の決算書!F37) -> 856321 | H37: 856321
E38: =IF(現在の決算書!E38="","",現在の決算書!E38) -> 通信費 | F38: =IF(現在の決算書!F38="","",現在の決算書!F38) -> 452321 | H38: 452321
E39: =IF(現在の決算書!E39="","",現在の決算書!E39) -> 消耗品費 | F39: =IF(現在の決算書!F39="","",現在の決算書!F39) -> 900000 | H39: 900000
E40: =IF(現在の決算書!E40="","",現在の決算書!E40) -> 事務用品費 | F40: =IF(現在の決算書!F40="","",現在の決算書!F40) -> 0 | H40: 0
E41: =IF(現在の決算書!E41="","",現在の決算書!E41) -> 水道光熱費 | F41: =IF(現在の決算書!F41="","",現在の決算書!F41) -> 180321 | H41: 180321
E42: =IF(現在の決算書!E42="","",現在の決算書!E42) -> 新聞図書費 | F42: =IF(現在の決算書!F42="","",現在の決算書!F42) -> 245622 | H42: 245622
E43: =IF(現在の決算書!E43="","",現在の決算書!E43) -> 諸会費 | F43: =IF(現在の決算書!F43="","",現在の決算書!F43) -> 180000 | H43: 180000
E44: =IF(現在の決算書!E44="","",現在の決算書!E44) -> 支払手数料 | F44: =IF(現在の決算書!F44="","",現在の決算書!F44) -> 840000 | H44: 840000
E45: =IF(現在の決算書!E45="","",現在の決算書!E45) -> 車両費 | F45: =IF(現在の決算書!F45="","",現在の決算書!F45) -> 325000 | H45: 325000
E46: =IF(現在の決算書!E46="","",現在の決算書!E46) -> 地代家賃 | F46: =IF(現在の決算書!F46="","",現在の決算書!F46) -> 1440000 | H46: 1440000
E47: =IF(現在の決算書!E47="","",現在の決算書!E47) -> 賃借料 | F47: =IF(現在の決算書!F47="","",現在の決算書!F47) -> 240000 | H47: 240000
E48: =IF(現在の決算書!E48="","",現在の決算書!E48) -> リース料 | F48: =IF(現在の決算書!F48="","",現在の決算書!F48) ->  | H48: 0
E49: =IF(現在の決算書!E49="","",現在の決算書!E49) -> 保険料 | F49: =IF(現在の決算書!F49="","",現在の決算書!F49) -> 45000 | H49: 45000
E50: =IF(現在の決算書!E50="","",現在の決算書!E50) -> 租税公課 | F50: =IF(現在の決算書!F50="","",現在の決算書!F50) -> 410000 | H50: 410000
E51: =IF(現在の決算書!E51="","",現在の決算書!E51) -> 研究開発費 | F51: =IF(現在の決算書!F51="","",現在の決算書!F51) ->  | H51: 0
E52: =IF(現在の決算書!E52="","",現在の決算書!E52) -> 減価償却費 | F52: =IF(現在の決算書!F52="","",現在の決算書!F52) -> 400000 | H52: 400000
E53: =IF(現在の決算書!E53="","",現在の決算書!E53) -> 長期前払費用償却 | F53: =IF(現在の決算書!F53="","",現在の決算書!F53) ->  | H53: 0
E54: =IF(現在の決算書!E54="","",現在の決算書!E54) -> 雑費 | F54: =IF(現在の決算書!F54="","",現在の決算書!F54) -> 256000 | H54: 256000
E55: =IF(現在の決算書!E55="","",現在の決算書!E55) -> 顧問料 | F55: =IF(現在の決算書!F55="","",現在の決算書!F55) -> 514500 | H55: 514500
E56: =IF(現在の決算書!E56="","",現在の決算書!E56) ->  | F56: =IF(現在の決算書!F56="","",現在の決算書!F56) ->  | H56: 0
E57: =IF(現在の決算書!E57="","",現在の決算書!E57) ->  | F57: =IF(現在の決算書!F57="","",現在の決算書!F57) ->  | H57: 0
E58: =IF(現在の決算書!E58="","",現在の決算書!E58) ->  | F58: =IF(現在の決算書!F58="","",現在の決算書!F58) ->  | H58: 0
E59: =IF(現在の決算書!E59="","",現在の決算書!E59) ->  | F59: =IF(現在の決算書!F59="","",現在の決算書!F59) ->  | H59: 0
E60: =IF(現在の決算書!E60="","",現在の決算書!E60) ->  | F60: =IF(現在の決算書!F60="","",現在の決算書!F60) -> 0 | H60: 0
E61: =IF(現在の決算書!E61="","",現在の決算書!E61) ->  | F61: =IF(現在の決算書!F61="","",現在の決算書!F61) -> 0 | H61: 0
D62: 販売管理費計 | F62: =SUM(F32:F61) -> 22929829 | H62: =SUM(H32:H61) -> 25073737
C63: 営業損益金額 | F63: =F22-F62 -> 3655416 | H63: =H22-H62 -> 1511508
B64: 営業外損益 | C64: 営業外収益 | D64: =IF(現在の決算書!D64="","",現在の決算書!D64) -> 受取利息 | F64: =IF(現在の決算書!F64="","",現在の決算書!F64) -> 9000 | H64: 9000
D65: =IF(現在の決算書!D65="","",現在の決算書!D65) -> 受取配当金 | F65: =IF(現在の決算書!F65="","",現在の決算書!F65) ->  | H65: 0
D66: =IF(現在の決算書!D66="","",現在の決算書!D66) ->  | F66: =IF(現在の決算書!F66="","",現在の決算書!F66) ->  | H66: 0
D67: =IF(現在の決算書!D67="","",現在の決算書!D67) ->  | F67: =IF(現在の決算書!F67="","",現在の決算書!F67) ->  | H67: 0
D68: =IF(現在の決算書!D68="","",現在の決算書!D68) -> 雑収入 | F68: =IF(現在の決算書!F68="","",現在の決算書!F68) ->  | H68: 0
D69: 営業外収益合計 | F69: =SUM(F64:F68) -> 9000 | H69: =SUM(H64:H68) -> 9000
C70: 営業外費用 | D70: =IF(現在の決算書!D70="","",現在の決算書!D70) -> 支払利息 | F70: =IF(現在の決算書!F70="","",現在の決算書!F70) ->  | H70: 0
D71: =IF(現在の決算書!D71="","",現在の決算書!D71) ->  | F71: =IF(現在の決算書!F71="","",現在の決算書!F71) ->  | H71: 0
D72: =IF(現在の決算書!D72="","",現在の決算書!D72) ->  | F72: =IF(現在の決算書!F72="","",現在の決算書!F72) ->  | H72: =SUM(F72:G72) -> 0
D73: =IF(現在の決算書!D73="","",現在の決算書!D73) ->  | F73: =IF(現在の決算書!F73="","",現在の決算書!F73) ->  | H73: 0
D74: =IF(現在の決算書!D74="","",現在の決算書!D74) -> 雑損失 | F74: =IF(現在の決算書!F74="","",現在の決算書!F74) ->  | H74: 0
D75: 営業外費用合計 | F75: =SUM(F70:F74) -> 0 | H75: =SUM(H70:H74) -> 0
C76: 経常損益金額 | F76: =F63+F69-F75 -> 3664416 | H76: =H63+H69-H75 -> 1520508
A77: 特別損益 | C77: 特別利益 | D77: =IF(現在の決算書!D77="","",現在の決算書!D77) ->  | F77: =IF(現在の決算書!F77="","",現在の決算書!F77) ->  | H77: 0
D78: =IF(現在の決算書!D78="","",現在の決算書!D78) ->  | F78: =IF(現在の決算書!F78="","",現在の決算書!F78) ->  | H78: 0
D79: =IF(現在の決算書!D79="","",現在の決算書!D79) ->  | F79: =IF(現在の決算書!F79="","",現在の決算書!F79) ->  | H79: 0
D80: =IF(現在の決算書!D80="","",現在の決算書!D80) ->  | F80: =IF(現在の決算書!F80="","",現在の決算書!F80) ->  | H80: 0
D81: =IF(現在の決算書!D81="","",現在の決算書!D81) ->  | F81: =IF(現在の決算書!F81="","",現在の決算書!F81) ->  | H81: 0
D82: 特別利益合計 | F82: =SUM(F77:F81) -> 0 | H82: 0
C83: 特別損失 | D83: =IF(現在の決算書!D83="","",現在の決算書!D83) ->  | F83: =IF(現在の決算書!F83="","",現在の決算書!F83) ->  | H83: 0
D84: =IF(現在の決算書!D84="","",現在の決算書!D84) ->  | F84: =IF(現在の決算書!F84="","",現在の決算書!F84) ->  | H84: 0
D85: =IF(現在の決算書!D85="","",現在の決算書!D85) ->  | F85: =IF(現在の決算書!F85="","",現在の決算書!F85) ->  | H85: 0
D86: =IF(現在の決算書!D86="","",現在の決算書!D86) ->  | F86: =IF(現在の決算書!F86="","",現在の決算書!F86) ->  | H86: 0
D87: =IF(現在の決算書!D87="","",現在の決算書!D87) ->  | F87: =IF(現在の決算書!F87="","",現在の決算書!F87) ->  | H87: 0
D88: 特別損失合計 | F88: =SUM(F83:F87) -> 0 | H88: =SUM(H83:H87) -> 0
C89: 税引前当期利益金額 | F89: =F76+F82-F88 -> 3664416 | H89: =H76+H82-H88 -> 1520508
E91: =SUMIF(E$9:S$89,"交際費",H$9:H$89) -> 783221
E92: =SUMIF(E$9:S$89,"接待交際費",H$9:H$89) -> 0
E93: =SUMIF(E$9:S$89,"交際接待費",H$9:H$89) -> 0
E94: =SUMIF(E$9:S$89,"接待費",H$9:H$89) -> 0
E95: =SUM(E91:E94) -> 783221

Sheet 法人税等シミュレーション
A5: １、所得の計算（別表４） | E5: ２、 法人税の計算 | H5: ５、県民税の計算 | K5: ６、納税見込額
A6: ="税引前当期利益" -> 税引前当期利益 | C6: =経費の増減!H89 -> 1520508 | E6: 所得金額 | F6: =C35 -> 1507008 | H6: 法人事業税 | K6: 法人税 | L6: =F15 -> 226000
A7: 加 算 | E7: 800万以下の金額 | F7: =IF(F6<=0,0,IF($F$6<=8000000,ROUNDDOWN($F$6/1000,0)*1000,8000000)) -> 1507000 | H7: 400万以下の金額 | I7: =IF(F6<=0,0,IF($F$6<=4000000,ROUNDDOWN($F$6/1000,0)*1000,4000000)) -> 1507000 | K7: 地方法人税 | L7: =F21 -> 23200
E8: 800万超の金額 | F8: =IF($F$6>8000000,ROUNDDOWN(($F$6-8000000)/1000,0)*1000,0) -> 0 | H8: 800万以下の金額 | I8: =IF($F$6<=4000000,0,IF($F$6<=8000000,ROUNDDOWN(($F$6-4000000)/1000,0)*1000,4000000)) -> 0 | K8: =H16 -> 法人事業税 | L8: =I16 -> 52700
E9: 800万までの税率 | F9: 0.15 | H9: 800万超の金額 | I9: =IF(F6<=8000000,0,ROUNDDOWN((F6-8000000)/1000,0)*1000) -> 0 | K9: =H23 -> 法人県民税 | L9: =I23 -> 22200
E10: 800万超の税率 | F10: 0.234 | H10: 400万以下の税率 | I10: 0.035 | K10: =H35 -> 地方法人特別税 | L10: =I35 -> 19400
E11: 800万までの税額 | F11: =ROUNDDOWN((F7*F9)/100,0)*100 -> 226000 | H11: 800万以下の税率 | I11: 0.053 | K11: =E31 -> 法人市民税 | L11: =F31 -> 63500
E12: 800万超の税額 | F12: =ROUNDDOWN((F8*F10)/100,0)*100 -> 0 | H12: 800万超の税率 | I12: 0.07 | K12: 合計納税額 | L12: =SUM(L6:L11) -> 407000
E13: 法人税額 | F13: =SUM(F11:F12) -> 226000 | H13: 400万以下の税額 | I13: =ROUNDDOWN(I7*I10/100,0)*100 -> 52700
E14: 法人税額特別控除額 | H14: 800万以下の税額 | I14: =ROUNDDOWN(I8*I11/100,0)*100 -> 0
E15: 差引法人税額 | F15: =ROUNDDOWN(SUM(F13-F14),-2) -> 226000 | H15: 800万超の税額 | I15: =ROUNDDOWN(I9*I12/100,0)*100 -> 0
H16: 法人事業税 | I16: =SUM(I13:I15) -> 52700
E17: ３、地方法人税の計算 | H17: 法人県民税
E18: 法人税割 | H18: 法人税額 | I18: =ROUNDDOWN(F15/1000,0)*1000 -> 226000
B19: ="加算小計" -> 加算小計 | C19: =SUM(C7:C18) -> 0 | E19: =H18 -> 法人税額 | F19: =I18 -> 226000 | H19: 法人税割税率 | I19: 0.01
A20: 減 算 | B20: 納税充当金支出事業税 | C20: 13500 | E20: 税率 | F20: 0.103 | H20: 法人税割額 | I20: =ROUNDDOWN((I18*I19)/100,0)*100 -> 2200
E21: 地方法人税額 | F21: =ROUNDDOWN(F19*F20/100,0)*100 -> 23200 | H21: 法人均等割額 | I21: 20000
H22: 法人税均等割 | I22: =SUM(I21) -> 20000
E23: ４、市民税の計算 | H23: 法人県民税 | I23: =I20+I22 -> 22200
E24: 法人税割 | H24: 特別法人事業税（国税）
E25: =E13 -> 法人税額 | F25: =ROUNDDOWN(F15/1000,0)*1000 -> 226000 | H25: 400万以下の金額 | I25: =IF(F6<=0,0,IF($F$6<=4000000,ROUNDDOWN($F$6/1000,0)*1000,4000000)) -> 1507000
E26: 法人税割税率 | F26: 0.06 | H26: 800万以下の金額 | I26: =IF($F$6<=4000000,0,IF($F$6<=8000000,ROUNDDOWN(($F$6-4000000)/1000,0)*1000,4000000)) -> 0
E27: 法人税割税額 | F27: =ROUNDDOWN(F25*F26/100,0)*100 -> 13500 | H27: 800万超の金額 | I27: =IF(F6<=8000000,0,ROUNDDOWN((F6-8000000)/1000,0)*1000) -> 0
E28: 法人税均等割 | H28: 400万以下の税率 | I28: 0.035
E29: 法人均等割額 | F29: 50000 | H29: 800万以下の税率 | I29: 0.053
E30: 法人税均等割 | F30: =SUM(F29) -> 50000 | H30: 800万超の税率 | I30: 0.07
E31: 法人市民税 | F31: =F27+F30 -> 63500 | H31: 400万以下の税額 | I31: =ROUNDDOWN(I25*I28/100,0)*100 -> 52700
B32: 減算小計 | C32: =SUM(C20:C31) -> 13500 | H32: 800万以下の税額 | I32: =ROUNDDOWN(I26*I29/100,0)*100 -> 0
A33: 今期予測所得金額 | C33: =C6+C19-C32 -> 1507008 | H33: 800万超の税額 | I33: =ROUNDDOWN(I27*I30/100,0)*100 -> 0
A34: 繰越欠損金額 | H34: 基準法人所得割額 | I34: =SUM(I31:I33) -> 52700
A35: 所得金額再計 | C35: =IF(C33-C34<0,0,C33-C34) -> 1507008 | H35: 地方法人特別税 | I35: =ROUNDDOWN(I34*0.37,-2) -> 19400

Sheet まとめ
A4: =基本情報入力!C7&"様" -> 株式会社今野デザイン様 | R4: 小林敬幸税理士事務所
A6: 役員報酬などを変更した場合の、税金及び社会保険料の負担額変化シミュレーション
A8: １．損益計算書の比較 | J8: ２．税額・社会保険料の比較
J9: 変更前 | O9: 変更後
A10: 勘 定 科 目 | F10: 変更前の金額 | G10: 変更後の金額 | H10: 差額 | J10: ①法人の税金 | O10: ①法人の税金
K11: 法人税 | M11: =基本情報入力!C11 -> 570400 | P11: 法人税 | R11: =法人税等シミュレーション!L6 -> 226000
A12: 経常損益 | B12: 営業損益 | C12: 売上高 | D12: =IF(経費の増減!D9="","",経費の増減!D9) -> 売上高 | F12: =IF(経費の増減!F9="","",経費の増減!F9) -> 26585245 | G12: =IF(経費の増減!H9="","",経費の増減!H9) -> 26585245 | H12: =IF(ISERR(G12-F12),0,G12-F12) -> 0 | K12: 地方法人税 | M12: =基本情報入力!C12 -> 25000 | P12: 地方法人税 | R12: =法人税等シミュレーション!L7 -> 23200
D13: =IF(経費の増減!D10="","",経費の増減!D10) ->  | F13: =IF(経費の増減!F10="","",経費の増減!F10) -> 0 | G13: =IF(経費の増減!H10="","",経費の増減!H10) -> 0 | H13: =G13-F13 -> 0 | K13: 法人事業税 | M13: =基本情報入力!C13 -> 93400 | P13: 法人事業税 | R13: =法人税等シミュレーション!L8 -> 52700
D14: =IF(経費の増減!D11="","",経費の増減!D11) ->  | F14: =IF(経費の増減!F11="","",経費の増減!F11) -> 0 | G14: =IF(経費の増減!H11="","",経費の増減!H11) -> 0 | H14: =IF(ISERR(G14-F14),0,G14-F14) -> 0 | K14: 法人県民税 | M14: =基本情報入力!C14 -> 48500 | P14: 法人県民税 | R14: =法人税等シミュレーション!L9 -> 22200
D15: 売上高合計 | F15: =SUM(F12:F14) -> 26585245 | G15: =SUM(G12:G14) -> 26585245 | H15: 0 | K15: 地方法人特別税 | M15: =基本情報入力!C15 -> 69200 | P15: 地方法人特別税 | R15: =法人税等シミュレーション!L10 -> 19400
C16: 売上原価 | D16: =IF(経費の増減!D13="","",経費の増減!D13) -> 期首棚卸高 | F16: =IF(経費の増減!F13="","",経費の増減!F13) ->  | G16: =IF(経費の増減!H13="","",経費の増減!H13) -> 0 | H16: 0 | K16: 法人市民税 | M16: =基本情報入力!C16 -> 120100 | P16: 法人市民税 | R16: =法人税等シミュレーション!L11 -> 63500
D17: =IF(経費の増減!D14="","",経費の増減!D14) -> 仕入高 | F17: =IF(経費の増減!F14="","",経費の増減!F14) ->  | G17: =IF(経費の増減!H14="","",経費の増減!H14) -> 0 | H17: 0 | K17: 合計 | M17: =SUM(M11:M16) -> 926600 | P17: 合計 | R17: =SUM(R11:R16) -> 407000
D18: =IF(経費の増減!D15="","",経費の増減!D15) ->  | F18: =IF(経費の増減!F15="","",経費の増減!F15) ->  | G18: =IF(経費の増減!H15="","",経費の増減!H15) -> 0 | H18: 0
D19: =IF(経費の増減!D16="","",経費の増減!D16) ->  | F19: =IF(経費の増減!F16="","",経費の増減!F16) ->  | G19: =IF(経費の増減!H16="","",経費の増減!H16) -> 0 | H19: 0 | J19: ②役員報酬に対する税金 | O19: ②役員報酬に対する税金
D20: =IF(経費の増減!D17="","",経費の増減!D17) ->  | F20: =IF(経費の増減!F17="","",経費の増減!F17) ->  | G20: =IF(経費の増減!H17="","",経費の増減!H17) -> 0 | H20: 0 | K20: 所得税 | M20: =給与の情報!J37 -> 202500 | P20: 所得税 | R20: =給与の情報!Q37 -> 99100
D21: =IF(経費の増減!D18="","",経費の増減!D18) ->  | F21: =IF(経費の増減!F18="","",経費の増減!F18) ->  | G21: =IF(経費の増減!H18="","",経費の増減!H18) -> 0 | H21: 0 | K21: 住民税 | M21: =給与の情報!J40 -> 329000 | P21: 住民税 | R21: =給与の情報!Q40 -> 311900
D22: =IF(経費の増減!D19="","",経費の増減!D19) ->  | F22: =IF(経費の増減!F19="","",経費の増減!F19) ->  | G22: =IF(経費の増減!H19="","",経費の増減!H19) -> 0 | H22: 0 | J22: 住宅借入金等特別控除額 | M22: 0 | O22: 住宅借入金等特別控除額 | R22: 0
D23: =IF(経費の増減!D20="","",経費の増減!D20) -> 期末棚卸高 | F23: =IF(経費の増減!F20="","",経費の増減!F20) ->  | G23: =IF(経費の増減!H20="","",経費の増減!H20) -> 0 | H23: 0 | K23: 合計 | M23: =IF(SUM(M20:M22)<0,0,SUM(M20:M22)) -> 531500 | P23: 合計 | R23: =IF(SUM(R20:R22)<0,0,SUM(R20:R22)) -> 411000
D24: 売上原価 | F24: =SUM(F16:F23) -> 0 | G24: =SUM(G16:G23) -> 0 | H24: 0
C25: 売上総損益金額 | F25: =F15-F24 -> 26585245 | G25: =G15-G24 -> 26585245 | H25: 0 | K25: 税金合計 | M25: =SUM(M17,M23) -> 1458100 | P25: 税金合計 | R25: =SUM(R17,R23) -> 818000
C26: (売上総利益率） | F26: =IF(F15<=0,0,F25/F15) -> 1 | G26: =IF(G15<=0,0,G25/G15) -> 1 | H26: 0
C27: 販売費及び一般管理費 | D27: 人件費 | E27: =IF(経費の増減!E24="","",経費の増減!E24) -> 役員報酬 | F27: =IF(経費の増減!F24="","",経費の増減!F24) -> 10620000 | G27: =IF(経費の増減!H24="","",経費の増減!H24) -> 12780000 | H27: 2160000 | J27: ③社会保険料 | O27: ③社会保険料
E28: =IF(経費の増減!E25="","",経費の増減!E25) -> 給料手当 | F28: =IF(経費の増減!F25="","",経費の増減!F25) -> 0 | G28: =IF(経費の増減!H25="","",経費の増減!H25) -> 0 | H28: 0 | K28: 法人負担保険料 | M28: =給与の情報!J44 -> 1421544 | P28: 法人負担保険料 | R28: =給与の情報!Q44 -> 1405452
E29: =IF(経費の増減!E26="","",経費の増減!E26) -> 賞与 | F29: =IF(経費の増減!F26="","",経費の増減!F26) -> 0 | G29: =IF(経費の増減!H26="","",経費の増減!H26) -> 0 | H29: 0 | J29: 役員個人負担保険料 | M29: =給与の情報!J45 -> 1388976 | O29: 役員個人負担保険料 | R29: =給与の情報!Q45 -> 1368996
E30: =IF(経費の増減!E27="","",経費の増減!E27) -> 退職金 | F30: =IF(経費の増減!F27="","",経費の増減!F27) -> 0 | G30: =IF(経費の増減!H27="","",経費の増減!H27) -> 0 | H30: 0 | K30: 合計 | M30: =SUM(M28:M29) -> 2810520 | P30: 合計 | R30: =SUM(R28:R29) -> 2774448
E31: =IF(経費の増減!E28="","",経費の増減!E28) -> 法定福利費 | F31: =IF(経費の増減!F28="","",経費の増減!F28) -> 1300236 | G31: =IF(経費の増減!H28="","",経費の増減!H28) -> 1284144 | H31: -16092
E32: =IF(経費の増減!E29="","",経費の増減!E29) ->  | F32: =IF(経費の増減!F29="","",経費の増減!F29) -> 0 | G32: =IF(経費の増減!H29="","",経費の増減!H29) -> 0 | H32: 0 | K32: 総合計 | M32: =SUM(M25,M30) -> 4268620 | P32: 総合計 | R32: =SUM(R25,R30) -> 3592448
E33: =IF(経費の増減!E30="","",経費の増減!E30) ->  | F33: =IF(経費の増減!F30="","",経費の増減!F30) -> 0 | G33: =IF(経費の増減!H30="","",経費の増減!H30) -> 0 | H33: 0
E34: =IF(経費の増減!E31="","",経費の増減!E31) ->  | F34: =IF(経費の増減!F31="","",経費の増減!F31) -> 0 | G34: =IF(経費の増減!H31="","",経費の増減!H31) -> 0 | H34: 0
E35: 人件費小計 | F35: =SUM(F27:F34) -> 11920236 | G35: =SUM(G27:G34) -> 14064144 | H35: 2143908
D36: その他の経費 | E36: =IF(経費の増減!E33="","",経費の増減!E33) -> 外注費 | F36: =IF(経費の増減!F33="","",経費の増減!F33) -> 2253654 | G36: =IF(経費の増減!H33="","",経費の増減!H33) -> 2253654 | H36: 0
E37: =IF(経費の増減!E34="","",経費の増減!E34) -> 広告宣伝費 | F37: =IF(経費の増減!F34="","",経費の増減!F34) -> 635000 | G37: =IF(経費の増減!H34="","",経費の増減!H34) -> 635000 | H37: 0
E38: =IF(経費の増減!E35="","",経費の増減!E35) -> 交際費 | F38: =IF(経費の増減!F35="","",経費の増減!F35) -> 783221 | G38: =IF(経費の増減!H35="","",経費の増減!H35) -> 783221 | H38: 0
E39: =IF(経費の増減!E36="","",経費の増減!E36) -> 会議費 | F39: =IF(経費の増減!F36="","",経費の増減!F36) -> 52633 | G39: =IF(経費の増減!H36="","",経費の増減!H36) -> 52633 | H39: 0
E40: =IF(経費の増減!E37="","",経費の増減!E37) -> 旅費交通費 | F40: =IF(経費の増減!F37="","",経費の増減!F37) -> 856321 | G40: =IF(経費の増減!H37="","",経費の増減!H37) -> 856321 | H40: 0
E41: =IF(経費の増減!E38="","",経費の増減!E38) -> 通信費 | F41: =IF(経費の増減!F38="","",経費の増減!F38) -> 452321 | G41: =IF(経費の増減!H38="","",経費の増減!H38) -> 452321 | H41: 0
E42: =IF(経費の増減!E39="","",経費の増減!E39) -> 消耗品費 | F42: =IF(経費の増減!F39="","",経費の増減!F39) -> 900000 | G42: =IF(経費の増減!H39="","",経費の増減!H39) -> 900000 | H42: 0
E43: =IF(経費の増減!E40="","",経費の増減!E40) -> 事務用品費 | F43: =IF(経費の増減!F40="","",経費の増減!F40) -> 0 | G43: =IF(経費の増減!H40="","",経費の増減!H40) -> 0 | H43: 0
E44: =IF(経費の増減!E41="","",経費の増減!E41) -> 水道光熱費 | F44: =IF(経費の増減!F41="","",経費の増減!F41) -> 180321 | G44: =IF(経費の増減!H41="","",経費の増減!H41) -> 180321 | H44: 0
E45: =IF(経費の増減!E42="","",経費の増減!E42) -> 新聞図書費 | F45: =IF(経費の増減!F42="","",経費の増減!F42) -> 245622 | G45: =IF(経費の増減!H42="","",経費の増減!H42) -> 245622 | H45: 0
E46: =IF(経費の増減!E43="","",経費の増減!E43) -> 諸会費 | F46: =IF(経費の増減!F43="","",経費の増減!F43) -> 180000 | G46: =IF(経費の増減!H43="","",経費の増減!H43) -> 180000 | H46: 0
E47: =IF(経費の増減!E44="","",経費の増減!E44) -> 支払手数料 | F47: =IF(経費の増減!F44="","",経費の増減!F44) -> 840000 | G47: =IF(経費の増減!H44="","",経費の増減!H44) -> 840000 | H47: 0
E48: =IF(経費の増減!E45="","",経費の増減!E45) -> 車両費 | F48: =IF(経費の増減!F45="","",経費の増減!F45) -> 325000 | G48: =IF(経費の増減!H45="","",経費の増減!H45) -> 325000 | H48: 0
E49: =IF(経費の増減!E46="","",経費の増減!E46) -> 地代家賃 | F49: =IF(経費の増減!F46="","",経費の増減!F46) -> 1440000 | G49: =IF(経費の増減!H46="","",経費の増減!H46) -> 1440000 | H49: 0
E50: =IF(経費の増減!E47="","",経費の増減!E47) -> 賃借料 | F50: =IF(経費の増減!F47="","",経費の増減!F47) -> 240000 | G50: =IF(経費の増減!H47="","",経費の増減!H47) -> 240000 | H50: 0
E51: =IF(経費の増減!E48="","",経費の増減!E48) -> リース料 | F51: =IF(経費の増減!F48="","",経費の増減!F48) ->  | G51: =IF(経費の増減!H48="","",経費の増減!H48) -> 0 | H51: 0
E52: =IF(経費の増減!E49="","",経費の増減!E49) -> 保険料 | F52: =IF(経費の増減!F49="","",経費の増減!F49) -> 45000 | G52: =IF(経費の増減!H49="","",経費の増減!H49) -> 45000 | H52: 0
E53: =IF(経費の増減!E50="","",経費の増減!E50) -> 租税公課 | F53: =IF(経費の増減!F50="","",経費の増減!F50) -> 410000 | G53: =IF(経費の増減!H50="","",経費の増減!H50) -> 410000 | H53: 0
E54: =IF(経費の増減!E51="","",経費の増減!E51) -> 研究開発費 | F54: =IF(経費の増減!F51="","",経費の増減!F51) ->  | G54: =IF(経費の増減!H51="","",経費の増減!H51) -> 0 | H54: 0
E55: =IF(経費の増減!E52="","",経費の増減!E52) -> 減価償却費 | F55: =IF(経費の増減!F52="","",経費の増減!F52) -> 400000 | G55: =IF(経費の増減!H52="","",経費の増減!H52) -> 400000 | H55: 0
E56: =IF(経費の増減!E53="","",経費の増減!E53) -> 長期前払費用償却 | F56: =IF(経費の増減!F53="","",経費の増減!F53) ->  | G56: =IF(経費の増減!H53="","",経費の増減!H53) -> 0 | H56: 0
E57: =IF(経費の増減!E54="","",経費の増減!E54) -> 雑費 | F57: =IF(経費の増減!F54="","",経費の増減!F54) -> 256000 | G57: =IF(経費の増減!H54="","",経費の増減!H54) -> 256000 | H57: 0
E58: =IF(経費の増減!E55="","",経費の増減!E55) -> 顧問料 | F58: =IF(経費の増減!F55="","",経費の増減!F55) -> 514500 | G58: =IF(経費の増減!H55="","",経費の増減!H55) -> 514500 | H58: 0
E59: =IF(経費の増減!E56="","",経費の増減!E56) ->  | F59: =IF(経費の増減!F56="","",経費の増減!F56) ->  | G59: =IF(経費の増減!H56="","",経費の増減!H56) -> 0 | H59: 0
E60: =IF(経費の増減!E57="","",経費の増減!E57) ->  | F60: =IF(経費の増減!F57="","",経費の増減!F57) ->  | G60: =IF(経費の増減!H57="","",経費の増減!H57) -> 0 | H60: 0
E61: =IF(経費の増減!E58="","",経費の増減!E58) ->  | F61: =IF(経費の増減!F58="","",経費の増減!F58) ->  | G61: =IF(経費の増減!H58="","",経費の増減!H58) -> 0 | H61: 0
E62: =IF(経費の増減!E59="","",経費の増減!E59) ->  | F62: =IF(経費の増減!F59="","",経費の増減!F59) ->  | G62: =IF(経費の増減!H59="","",経費の増減!H59) -> 0 | H62: 0
E63: =IF(経費の増減!E60="","",経費の増減!E60) ->  | F63: =IF(経費の増減!F60="","",経費の増減!F60) -> 0 | G63: =IF(経費の増減!H60="","",経費の増減!H60) -> 0 | H63: 0
E64: =IF(経費の増減!E61="","",経費の増減!E61) ->  | F64: =IF(経費の増減!F61="","",経費の増減!F61) -> 0 | G64: =IF(経費の増減!H61="","",経費の増減!H61) -> 0 | H64: 0
D65: 販売管理費計 | F65: =SUM(F35:F64) -> 22929829 | G65: =SUM(G35:G64) -> 25073737 | H65: 2143908
C66: 営業損益金額 | F66: =F25-F65 -> 3655416 | G66: =G25-G65 -> 1511508 | H66: -2143908
B67: 営業外損益 | C67: 営業外収益 | D67: =IF(経費の増減!D64="","",経費の増減!D64) -> 受取利息 | F67: =IF(経費の増減!F64="","",経費の増減!F64) -> 9000 | G67: =IF(経費の増減!H64="","",経費の増減!H64) -> 9000 | H67: 0
D68: =IF(経費の増減!D65="","",経費の増減!D65) -> 受取配当金 | F68: =IF(経費の増減!F65="","",経費の増減!F65) ->  | G68: =IF(経費の増減!H65="","",経費の増減!H65) -> 0 | H68: 0
D69: =IF(経費の増減!D66="","",経費の増減!D66) ->  | F69: =IF(経費の増減!F66="","",経費の増減!F66) ->  | G69: =IF(経費の増減!H66="","",経費の増減!H66) -> 0 | H69: 0
D70: =IF(経費の増減!D67="","",経費の増減!D67) ->  | F70: =IF(経費の増減!F67="","",経費の増減!F67) ->  | G70: =IF(経費の増減!H67="","",経費の増減!H67) -> 0 | H70: 0
D71: =IF(経費の増減!D68="","",経費の増減!D68) -> 雑収入 | F71: =IF(経費の増減!F68="","",経費の増減!F68) ->  | G71: =IF(経費の増減!H68="","",経費の増減!H68) -> 0 | H71: 0
D72: 営業外収益合計 | F72: =SUM(F67:F71) -> 9000 | G72: =SUM(G67:G71) -> 9000 | H72: 0
C73: 営業外費用 | D73: =IF(経費の増減!D70="","",経費の増減!D70) -> 支払利息 | F73: =IF(経費の増減!F70="","",経費の増減!F70) ->  | G73: =IF(経費の増減!H70="","",経費の増減!H70) -> 0 | H73: 0
D74: =IF(経費の増減!D71="","",経費の増減!D71) ->  | F74: =IF(経費の増減!F71="","",経費の増減!F71) ->  | G74: =IF(経費の増減!H71="","",経費の増減!H71) -> 0 | H74: 0
D75: =IF(経費の増減!D72="","",経費の増減!D72) ->  | F75: =IF(経費の増減!F72="","",経費の増減!F72) ->  | G75: =IF(経費の増減!H72="","",経費の増減!H72) -> 0 | H75: 0
D76: =IF(経費の増減!D73="","",経費の増減!D73) ->  | F76: =IF(経費の増減!F73="","",経費の増減!F73) ->  | G76: =IF(経費の増減!H73="","",経費の増減!H73) -> 0 | H76: 0
D77: =IF(経費の増減!D74="","",経費の増減!D74) -> 雑損失 | F77: =IF(経費の増減!F74="","",経費の増減!F74) ->  | G77: =IF(経費の増減!H74="","",経費の増減!H74) -> 0 | H77: 0
D78: 営業外費用合計 | F78: =SUM(F73:F77) -> 0 | G78: =SUM(G73:G77) -> 0 | H78: =IF(ISERR(G78-F78),0,G78-F78) -> 0
C79: 経常損益金額 | F79: =F66+F72-F78 -> 3664416 | G79: =G66+G72-G78 -> 1520508 | H79: -2143908
A80: 特別損益 | C80: 特別利益 | D80: =IF(経費の増減!D77="","",経費の増減!D77) ->  | F80: =IF(経費の増減!F77="","",経費の増減!F77) ->  | G80: =IF(経費の増減!H77="","",経費の増減!H77) -> 0 | H80: 0
D81: =IF(経費の増減!D78="","",経費の増減!D78) ->  | F81: =IF(経費の増減!F78="","",経費の増減!F78) ->  | G81: =IF(経費の増減!H78="","",経費の増減!H78) -> 0 | H81: 0
D82: =IF(経費の増減!D79="","",経費の増減!D79) ->  | F82: =IF(経費の増減!F79="","",経費の増減!F79) ->  | G82: =IF(経費の増減!H79="","",経費の増減!H79) -> 0 | H82: 0
D83: =IF(経費の増減!D80="","",経費の増減!D80) ->  | F83: =IF(経費の増減!F80="","",経費の増減!F80) ->  | G83: =IF(経費の増減!H80="","",経費の増減!H80) -> 0 | H83: 0
D84: =IF(経費の増減!D81="","",経費の増減!D81) ->  | F84: =IF(経費の増減!F81="","",経費の増減!F81) ->  | G84: =IF(経費の増減!H81="","",経費の増減!H81) -> 0 | H84: 0
D85: 特別利益合計 | F85: =SUM(F80:F84) -> 0 | G85: =SUM(F85:F85) -> 0 | H85: 0
C86: 特別損失 | D86: =IF(経費の増減!D83="","",経費の増減!D83) ->  | F86: =IF(経費の増減!F83="","",経費の増減!F83) ->  | G86: =IF(経費の増減!H83="","",経費の増減!H83) -> 0 | H86: 0
D87: =IF(経費の増減!D84="","",経費の増減!D84) ->  | F87: =IF(経費の増減!F84="","",経費の増減!F84) ->  | G87: =IF(経費の増減!H84="","",経費の増減!H84) -> 0 | H87: 0
D88: =IF(経費の増減!D85="","",経費の増減!D85) ->  | F88: =IF(経費の増減!F85="","",経費の増減!F85) ->  | G88: =IF(経費の増減!H85="","",経費の増減!H85) -> 0 | H88: 0
D89: =IF(経費の増減!D86="","",経費の増減!D86) ->  | F89: =IF(経費の増減!F86="","",経費の増減!F86) ->  | G89: =IF(経費の増減!H86="","",経費の増減!H86) -> 0 | H89: 0
D90: =IF(経費の増減!D87="","",経費の増減!D87) ->  | F90: =IF(経費の増減!F87="","",経費の増減!F87) ->  | G90: =IF(経費の増減!H87="","",経費の増減!H87) -> 0 | H90: 0
D91: 特別損失合計 | F91: =SUM(F86:F90) -> 0 | G91: =SUM(G86:G90) -> 0 | H91: 0
C92: 税引前当期利益金額 | F92: =F79+F85-F91 -> 3664416 | G92: =G79+G85-G91 -> 1520508 | H92: -2143908

Sheet 標準報酬月額表 (hidden)
A1: 標準報酬月額表
A3: 等級 | C3: 標準報酬月額 | E3: 報酬月額 | F3: =給与の情報!E8 -> 今野友夫 | H3: =給与の情報!F8 -> 今野朝子 | J3: =給与の情報!G8 -> 今野みつ子 | L3: =給与の情報!H8 -> 今野雅之 | N3: =給与の情報!I8 -> 今野菜穂美 | P3: =給与の情報!L8 -> 今野友夫 | R3: =給与の情報!M8 -> 今野朝子 | T3: =給与の情報!N8 -> 今野みつ子 | V3: =給与の情報!O8 -> 今野雅之 | X3: =給与の情報!P8 -> 今野菜穂美
F4: =給与の情報!E14 -> 666666 | H4: =給与の情報!F14 -> 133333 | J4: =給与の情報!G14 -> 85000 | L4: =給与の情報!H14 -> 0 | N4: =給与の情報!I14 -> 0 | P4: =給与の情報!L14 -> 450000 | R4: =給与の情報!M14 -> 300000 | T4: =給与の情報!N14 -> 105000 | V4: =給与の情報!O14 -> 105000 | X4: =給与の情報!P14 -> 105000
C5: 健康保険 | D5: 厚生年金 | F5: 健康保険 | G5: 厚生年金 | H5: 健康保険 | I5: 厚生年金 | J5: 健康保険 | K5: 厚生年金 | L5: 健康保険 | M5: 厚生年金 | N5: 健康保険 | O5: 厚生年金 | P5: 健康保険 | Q5: 厚生年金 | R5: 健康保険 | S5: 厚生年金 | T5: 健康保険 | U5: 厚生年金 | V5: 健康保険 | W5: 厚生年金 | X5: 健康保険 | Y5: 厚生年金
A6: 1 | B6: － | C6: 58000 | D6: 98000 | E6: 63000 | F6: =IF(F$4<$E6,$C6,"") ->  | G6: =IF(F$4<$E6,$D6,"") ->  | H6: =IF(H$4<$E6,$C6,"") ->  | I6: =IF(H$4<$E6,$D6,"") ->  | J6: =IF(J$4<$E6,$C6,"") ->  | K6: =IF(J$4<$E6,$D6,"") ->  | L6: =IF(L$4<$E6,$C6,"") -> 58000 | M6: =IF(L$4<$E6,$D6,"") -> 98000 | N6: =IF(N$4<$E6,$C6,"") -> 58000 | O6: =IF(N$4<$E6,$D6,"") -> 98000 | P6: =IF(P$4<$E6,$C6,"") ->  | Q6: =IF(P$4<$E6,$D6,"") ->  | R6: =IF(R$4<$E6,$C6,"") ->  | S6: =IF(R$4<$E6,$D6,"") ->  | T6: =IF(T$4<$E6,$C6,"") ->  | U6: =IF(T$4<$E6,$D6,"") ->  | V6: =IF(V$4<$E6,$C6,"") ->  | W6: =IF(V$4<$E6,$D6,"") ->  | X6: =IF(X$4<$E6,$C6,"") ->  | Y6: =IF(X$4<$E6,$D6,"") -> 
A7: 2 | B7: － | C7: 68000 | D7: 98000 | E7: 73000 | G7: =IF(F$4<$E7,$D7,"") ->  | L7: 68000 | M7: 98000 | N7: 68000 | O7: 98000 | V7: =IF(V$4<$E7,$C7,"") ->  | X7: =IF(X$4<$E7,$C7,"") -> 
A8: 3 | B8: － | C8: 78000 | D8: 98000 | E8: 83000 | L8: 78000 | M8: 98000 | N8: 78000 | O8: 98000
A9: 4 | B9: － | C9: 88000 | D9: 98000 | E9: 93000 | J9: 88000 | K9: 98000 | L9: 88000 | M9: 98000 | N9: 88000 | O9: 98000
A10: 5 | B10: 1 | C10: 98000 | D10: 98000 | E10: 101000 | J10: 98000 | K10: 98000 | L10: 98000 | M10: 98000 | N10: 98000 | O10: 98000
A11: 6 | B11: 2 | C11: 104000 | D11: 104000 | E11: 107000 | J11: 104000 | K11: 104000 | L11: 104000 | M11: 104000 | N11: 104000 | O11: 104000 | T11: 104000 | U11: 104000 | V11: 104000 | W11: 104000 | X11: 104000 | Y11: 104000
A12: 7 | B12: 3 | C12: 110000 | D12: 110000 | E12: 114000 | J12: 110000 | K12: 110000 | L12: 110000 | M12: 110000 | N12: 110000 | O12: 110000 | T12: 110000 | U12: 110000 | V12: 110000 | W12: 110000 | X12: 110000 | Y12: 110000
A13: 8 | B13: 4 | C13: 118000 | D13: 118000 | E13: 122000 | J13: 118000 | K13: 118000 | L13: 118000 | M13: 118000 | N13: 118000 | O13: 118000 | T13: 118000 | U13: 118000 | V13: 118000 | W13: 118000 | X13: 118000 | Y13: 118000
A14: 9 | B14: 5 | C14: 126000 | D14: 126000 | E14: 130000 | J14: 126000 | K14: 126000 | L14: 126000 | M14: 126000 | N14: 126000 | O14: 126000 | T14: 126000 | U14: 126000 | V14: 126000 | W14: 126000 | X14: 126000 | Y14: 126000
A15: 10 | B15: 6 | C15: 134000 | D15: 134000 | E15: 138000 | H15: 134000 | I15: 134000 | J15: 134000 | K15: 134000 | L15: 134000 | M15: 134000 | N15: 134000 | O15: 134000 | T15: 134000 | U15: 134000 | V15: 134000 | W15: 134000 | X15: 134000 | Y15: 134000
A16: 11 | B16: 7 | C16: 142000 | D16: 142000 | E16: 146000 | H16: 142000 | I16: 142000 | J16: 142000 | K16: 142000 | L16: 142000 | M16: 142000 | N16: 142000 | O16: 142000 | T16: 142000 | U16: 142000 | V16: 142000 | W16: 142000 | X16: 142000 | Y16: 142000
A17: 12 | B17: 8 | C17: 150000 | D17: 150000 | E17: 155000 | H17: 150000 | I17: 150000 | J17: 150000 | K17: 150000 | L17: 150000 | M17: 150000 | N17: 150000 | O17: 150000 | P17: =IF(P$4<$E17,$C17,"") ->  | T17: 150000 | U17: 150000 | V17: 150000 | W17: 150000 | X17: 150000 | Y17: 150000
A18: 13 | B18: 9 | C18: 160000 | D18: 160000 | E18: 165000 | H18: 160000 | I18: 160000 | J18: 160000 | K18: 160000 | L18: 160000 | M18: 160000 | N18: 160000 | O18: 160000 | T18: 160000 | U18: 160000 | V18: 160000 | W18: 160000 | X18: 160000 | Y18: 160000
A19: 14 | B19: 10 | C19: 170000 | D19: 170000 | E19: 175000 | H19: 170000 | I19: 170000 | J19: 170000 | K19: 170000 | L19: 170000 | M19: 170000 | N19: 170000 | O19: 170000 | T19: 170000 | U19: 170000 | V19: 170000 | W19: 170000 | X19: 170000 | Y19: 170000
A20: 15 | B20: 11 | C20: 180000 | D20: 180000 | E20: 185000 | H20: 180000 | I20: 180000 | J20: 180000 | K20: 180000 | L20: 180000 | M20: 180000 | N20: 180000 | O20: 180000 | T20: 180000 | U20: 180000 | V20: 180000 | W20: 180000 | X20: 180000 | Y20: 180000
A21: 16 | B21: 12 | C21: 190000 | D21: 190000 | E21: 195000 | H21: 190000 | I21: 190000 | J21: 190000 | K21: 190000 | L21: 190000 | M21: 190000 | N21: 190000 | O21: 190000 | T21: 190000 | U21: 190000 | V21: 190000 | W21: 190000 | X21: 190000 | Y21: 190000
A22: 17 | B22: 13 | C22: 200000 | D22: 200000 | E22: 210000 | H22: 200000 | I22: 200000 | J22: 200000 | K22: 200000 | L22: 200000 | M22: 200000 | N22: 200000 | O22: 200000 | T22: 200000 | U22: 200000 | V22: 200000 | W22: 200000 | X22: 200000 | Y22: 200000
A23: 18 | B23: 14 | C23: 220000 | D23: 220000 | E23: 230000 | H23: 220000 | I23: 220000 | J23: 220000 | K23: 220000 | L23: 220000 | M23: 220000 | N23: 220000 | O23: 220000 | T23: 220000 | U23: 220000 | V23: 220000 | W23: 220000 | X23: 220000 | Y23: 220000
A24: 19 | B24: 15 | C24: 240000 | D24: 240000 | E24: 250000 | H24: 240000 | I24: 240000 | J24: 240000 | K24: 240000 | L24: 240000 | M24: 240000 | N24: 240000 | O24: 240000 | T24: 240000 | U24: 240000 | V24: 240000 | W24: 240000 | X24: 240000 | Y24: 240000
A25: 20 | B25: 16 | C25: 260000 | D25: 260000 | E25: 270000 | H25: 260000 | I25: 260000 | J25: 260000 | K25: 260000 | L25: 260000 | M25: 260000 | N25: 260000 | O25: 260000 | T25: 260000 | U25: 260000 | V25: 260000 | W25: 260000 | X25: 260000 | Y25: 260000
A26: 21 | B26: 17 | C26: 280000 | D26: 280000 | E26: 290000 | H26: 280000 | I26: 280000 | J26: 280000 | K26: 280000 | L26: 280000 | M26: 280000 | N26: 280000 | O26: 280000 | T26: 280000 | U26: 280000 | V26: 280000 | W26: 280000 | X26: 280000 | Y26: 280000
A27: 22 | B27: 18 | C27: 300000 | D27: 300000 | E27: 310000 | H27: 300000 | I27: 300000 | J27: 300000 | K27: 300000 | L27: 300000 | M27: 300000 | N27: 300000 | O27: 300000 | R27: 300000 | S27: 300000 | T27: 300000 | U27: 300000 | V27: 300000 | W27: 300000 | X27: 300000 | Y27: 300000
A28: 23 | B28: 19 | C28: 320000 | D28: 320000 | E28: 330000 | H28: 320000 | I28: 320000 | J28: 320000 | K28: 320000 | L28: 320000 | M28: 320000 | N28: 320000 | O28: 320000 | R28: 320000 | S28: 320000 | T28: 320000 | U28: 320000 | V28: 320000 | W28: 320000 | X28: 320000 | Y28: 320000
A29: 24 | B29: 20 | C29: 340000 | D29: 340000 | E29: 350000 | H29: 340000 | I29: 340000 | J29: 340000 | K29: 340000 | L29: 340000 | M29: 340000 | N29: 340000 | O29: 340000 | R29: 340000 | S29: 340000 | T29: 340000 | U29: 340000 | V29: 340000 | W29: 340000 | X29: 340000 | Y29: 340000
A30: 25 | B30: 21 | C30: 360000 | D30: 360000 | E30: 370000 | H30: 360000 | I30: 360000 | J30: 360000 | K30: 360000 | L30: 360000 | M30: 360000 | N30: 360000 | O30: 360000 | R30: 360000 | S30: 360000 | T30: 360000 | U30: 360000 | V30: 360000 | W30: 360000 | X30: 360000 | Y30: 360000
A31: 26 | B31: 22 | C31: 380000 | D31: 380000 | E31: 395000 | H31: 380000 | I31: 380000 | J31: 380000 | K31: 380000 | L31: 380000 | M31: 380000 | N31: 380000 | O31: 380000 | R31: 380000 | S31: 380000 | T31: 380000 | U31: 380000 | V31: 380000 | W31: 380000 | X31: 380000 | Y31: 380000
A32: 27 | B32: 23 | C32: 410000 | D32: 410000 | E32: 425000 | H32: 410000 | I32: 410000 | J32: 410000 | K32: 410000 | L32: 410000 | M32: 410000 | N32: 410000 | O32: 410000 | R32: 410000 | S32: 410000 | T32: 410000 | U32: 410000 | V32: 410000 | W32: 410000 | X32: 410000 | Y32: 410000
A33: 28 | B33: 24 | C33: 440000 | D33: 440000 | E33: 455000 | H33: 440000 | I33: 440000 | J33: 440000 | K33: 440000 | L33: 440000 | M33: 440000 | N33: 440000 | O33: 440000 | P33: =IF(P$4<$E33,$C33,"") -> 440000 | Q33: 440000 | R33: 440000 | S33: 440000 | T33: 440000 | U33: 440000 | V33: 440000 | W33: 440000 | X33: 440000 | Y33: 440000
A34: 29 | B34: 25 | C34: 470000 | D34: 470000 | E34: 485000 | H34: 470000 | I34: 470000 | J34: 470000 | K34: 470000 | L34: 470000 | M34: 470000 | N34: 470000 | O34: 470000 | P34: 470000 | Q34: 470000 | R34: 470000 | S34: 470000 | T34: 470000 | U34: 470000 | V34: 470000 | W34: 470000 | X34: 470000 | Y34: 470000
A35: 30 | B35: 26 | C35: 500000 | D35: 500000 | E35: 515000 | H35: 500000 | I35: 500000 | J35: 500000 | K35: 500000 | L35: 500000 | M35: 500000 | N35: 500000 | O35: 500000 | P35: 500000 | Q35: 500000 | R35: 500000 | S35: 500000 | T35: 500000 | U35: 500000 | V35: 500000 | W35: 500000 | X35: 500000 | Y35: 500000
A36: 31 | B36: 27 | C36: 530000 | D36: 530000 | E36: 545000 | H36: 530000 | I36: 530000 | J36: 530000 | K36: 530000 | L36: 530000 | M36: 530000 | N36: 530000 | O36: 530000 | P36: 530000 | Q36: 530000 | R36: 530000 | S36: 530000 | T36: 530000 | U36: 530000 | V36: 530000 | W36: 530000 | X36: 530000 | Y36: 530000
A37: 32 | B37: 28 | C37: 560000 | D37: 560000 | E37: 575000 | H37: 560000 | I37: 560000 | J37: 560000 | K37: 560000 | L37: 560000 | M37: 560000 | N37: 560000 | O37: 560000 | P37: 560000 | Q37: 560000 | R37: 560000 | S37: 560000 | T37: 560000 | U37: 560000 | V37: 560000 | W37: 560000 | X37: 560000 | Y37: 560000
A38: 33 | B38: 29 | C38: 590000 | D38: 590000 | E38: 605000 | H38: 590000 | I38: 590000 | J38: 590000 | K38: 590000 | L38: 590000 | M38: 590000 | N38: 590000 | O38: 590000 | P38: 590000 | Q38: 590000 | R38: 590000 | S38: 590000 | T38: 590000 | U38: 590000 | V38: 590000 | W38: 590000 | X38: 590000 | Y38: 590000
A39: 34 | B39: 30 | C39: 620000 | D39: 620000 | E39: 635000 | H39: 620000 | I39: 620000 | J39: 620000 | K39: 620000 | L39: 620000 | M39: 620000 | N39: 620000 | O39: 620000 | P39: 620000 | Q39: 620000 | R39: 620000 | S39: 620000 | T39: 620000 | U39: 620000 | V39: 620000 | W39: 620000 | X39: 620000 | Y39: 620000
A40: 35 | B40: － | C40: 650000 | D40: 620000 | E40: 665000 | H40: 650000 | I40: 620000 | J40: 650000 | K40: 620000 | L40: 650000 | M40: 620000 | N40: 650000 | O40: 620000 | P40: 650000 | Q40: 620000 | R40: 650000 | S40: 620000 | T40: 650000 | U40: 620000 | V40: 650000 | W40: 620000 | X40: 650000 | Y40: 620000
A41: 36 | B41: － | C41: 680000 | D41: 620000 | E41: 695000 | F41: 680000 | G41: 620000 | H41: 680000 | I41: 620000 | J41: 680000 | K41: 620000 | L41: 680000 | M41: 620000 | N41: 680000 | O41: 620000 | P41: 680000 | Q41: 620000 | R41: 680000 | S41: 620000 | T41: 680000 | U41: 620000 | V41: 680000 | W41: 620000 | X41: 680000 | Y41: 620000
A42: 37 | B42: － | C42: 710000 | D42: 620000 | E42: 730000 | F42: 710000 | G42: 620000 | H42: 710000 | I42: 620000 | J42: 710000 | K42: 620000 | L42: 710000 | M42: 620000 | N42: 710000 | O42: 620000 | P42: 710000 | Q42: 620000 | R42: 710000 | S42: 620000 | T42: 710000 | U42: 620000 | V42: 710000 | W42: 620000 | X42: 710000 | Y42: 620000
A43: 38 | B43: － | C43: 750000 | D43: 620000 | E43: 770000 | F43: 750000 | G43: 620000 | H43: 750000 | I43: 620000 | J43: 750000 | K43: 620000 | L43: 750000 | M43: 620000 | N43: 750000 | O43: 620000 | P43: 750000 | Q43: 620000 | R43: 750000 | S43: 620000 | T43: 750000 | U43: 620000 | V43: 750000 | W43: 620000 | X43: 750000 | Y43: 620000
A44: 39 | B44: － | C44: 790000 | D44: 620000 | E44: 810000 | F44: 790000 | G44: 620000 | H44: 790000 | I44: 620000 | J44: 790000 | K44: 620000 | L44: 790000 | M44: 620000 | N44: 790000 | O44: 620000 | P44: 790000 | Q44: 620000 | R44: 790000 | S44: 620000 | T44: 790000 | U44: 620000 | V44: 790000 | W44: 620000 | X44: 790000 | Y44: 620000
A45: 40 | B45: － | C45: 830000 | D45: 620000 | E45: 855000 | F45: 830000 | G45: 620000 | H45: 830000 | I45: 620000 | J45: 830000 | K45: 620000 | L45: 830000 | M45: 620000 | N45: 830000 | O45: 620000 | P45: 830000 | Q45: 620000 | R45: 830000 | S45: 620000 | T45: 830000 | U45: 620000 | V45: 830000 | W45: 620000 | X45: 830000 | Y45: 620000
A46: 41 | B46: － | C46: 880000 | D46: 620000 | E46: 905000 | F46: 880000 | G46: 620000 | H46: 880000 | I46: 620000 | J46: 880000 | K46: 620000 | L46: 880000 | M46: 620000 | N46: 880000 | O46: 620000 | P46: 880000 | Q46: 620000 | R46: 880000 | S46: 620000 | T46: 880000 | U46: 620000 | V46: 880000 | W46: 620000 | X46: 880000 | Y46: 620000
A47: 42 | B47: － | C47: 930000 | D47: 620000 | E47: 955000 | F47: 930000 | G47: 620000 | H47: 930000 | I47: 620000 | J47: 930000 | K47: 620000 | L47: 930000 | M47: 620000 | N47: 930000 | O47: 620000 | P47: 930000 | Q47: 620000 | R47: 930000 | S47: 620000 | T47: 930000 | U47: 620000 | V47: 930000 | W47: 620000 | X47: 930000 | Y47: 620000
A48: 43 | B48: － | C48: 980000 | D48: 620000 | E48: 1005000 | F48: 980000 | G48: 620000 | H48: 980000 | I48: 620000 | J48: 980000 | K48: 620000 | L48: 980000 | M48: 620000 | N48: 980000 | O48: 620000 | P48: 980000 | Q48: 620000 | R48: 980000 | S48: 620000 | T48: 980000 | U48: 620000 | V48: 980000 | W48: 620000 | X48: 980000 | Y48: 620000
A49: 44 | B49: － | C49: 1030000 | D49: 620000 | E49: 1055000 | F49: 1030000 | G49: 620000 | H49: 1030000 | I49: 620000 | J49: 1030000 | K49: 620000 | L49: 1030000 | M49: 620000 | N49: 1030000 | O49: 620000 | P49: =IF(P$4<$E49,$C49,"") -> 1030000 | Q49: 620000 | R49: 1030000 | S49: 620000 | T49: 1030000 | U49: 620000 | V49: 1030000 | W49: 620000 | X49: 1030000 | Y49: 620000
A50: 45 | B50: － | C50: 1090000 | D50: 620000 | E50: 1115000 | F50: 1090000 | G50: 620000 | H50: 1090000 | I50: 620000 | J50: 1090000 | K50: 620000 | L50: 1090000 | M50: 620000 | N50: 1090000 | O50: 620000 | P50: 1090000 | Q50: 620000 | R50: 1090000 | S50: 620000 | T50: 1090000 | U50: 620000 | V50: 1090000 | W50: 620000 | X50: 1090000 | Y50: 620000
A51: 46 | B51: － | C51: 1150000 | D51: 620000 | E51: 1175000 | F51: 1150000 | G51: 620000 | H51: 1150000 | I51: 620000 | J51: 1150000 | K51: 620000 | L51: 1150000 | M51: 620000 | N51: 1150000 | O51: 620000 | P51: 1150000 | Q51: 620000 | R51: 1150000 | S51: 620000 | T51: 1150000 | U51: 620000 | V51: 1150000 | W51: 620000 | X51: 1150000 | Y51: 620000
A52: 47 | B52: － | C52: 1210000 | D52: 620000 | E52: 1175001 | F52: =IF(F$4>=$E52,$C52,"") ->  | G52: =IF(F$4>=$E52,$D52,"") ->  | H52: =IF(H$4>=$E52,$C52,"") ->  | I52: =IF(H$4>=$E52,$D52,"") ->  | J52: =IF(J$4>=$E52,$C52,"") ->  | K52: =IF(J$4>=$E52,$D52,"") ->  | L52: =IF(L$4>=$E52,$C52,"") ->  | M52: =IF(L$4>=$E52,$D52,"") ->  | N52: =IF(N$4>=$E52,$C52,"") ->  | O52: =IF(N$4>=$E52,$D52,"") ->  | P52: =IF(P$4>=$E52,$C52,"") ->  | Q52: =IF(P$4>=$E52,$D52,"") ->  | R52: =IF(R$4>=$E52,$C52,"") ->  | S52: =IF(R$4>=$E52,$D52,"") ->  | T52: =IF(T$4>=$E52,$C52,"") ->  | U52: =IF(T$4>=$E52,$D52,"") ->  | V52: =IF(V$4>=$E52,$C52,"") ->  | W52: =IF(V$4>=$E52,$D52,"") ->  | X52: =IF(X$4>=$E52,$C52,"") ->  | Y52: =IF(X$4>=$E52,$D52,"") -> 
F53: =MIN(F6:F52) -> 680000 | G53: 620000 | H53: 134000 | I53: 134000 | J53: 88000 | K53: 98000 | L53: 58000 | M53: 98000 | N53: 58000 | O53: 98000 | P53: =MIN(P6:P52) -> 440000 | Q53: 440000 | R53: 300000 | S53: 300000 | T53: 104000 | U53: 104000 | V53: 104000 | W53: 104000 | X53: 104000 | Y53: 104000
F54: =IF(F4=0,"",F53) -> 680000 | G54: =IF(F4=0,"",G53) -> 620000 | H54: =IF(H4=0,"",H53) -> 134000 | I54: =IF(H4=0,"",I53) -> 134000 | J54: =IF(J4=0,"",J53) -> 88000 | K54: =IF(J4=0,"",K53) -> 98000 | L54: =IF(L4=0,"",L53) ->  | M54: =IF(L4=0,"",M53) ->  | N54: =IF(N4=0,"",N53) ->  | O54: =IF(N4=0,"",O53) ->  | P54: =IF(P4=0,"",P53) -> 440000 | Q54: =IF(P4=0,"",Q53) -> 440000 | R54: =IF(R4=0,"",R53) -> 300000 | S54: =IF(R4=0,"",S53) -> 300000 | T54: =IF(T4=0,"",T53) -> 104000 | U54: =IF(T4=0,"",U53) -> 104000 | V54: =IF(V4=0,"",V53) -> 104000 | W54: =IF(V4=0,"",W53) -> 104000 | X54: =IF(X4=0,"",X53) -> 104000 | Y54: =IF(X4=0,"",Y53) -> 104000
